fUST/lending_fUST_20240630
["ID","MTS","AMOUNT","RATE_DAILY","PERIOD"]
[330653994,1719693040059,-500.0,0.00016944,2]
[330653996,1719693040069,-500.0,0.00016944,2]
[330653998,1719693040079,-500.0,0.00016944,2]
[330654000,1719693040089,-500.0,0.00016944,2]
[330654002,1719693040100,-500.0,0.00016944,2]
[330654004,1719693040112,-500.0,0.00016944,2]
[330654005,1719693040122,-583.66,0.00016944,2]
[330654007,1719693040132,-500.0,0.00016944,2]
[330654009,1719693040142,-635.59642352,0.00016944,2]
[330654011,1719693040151,-2358.48,0.00016944,2]
[330654013,1719693040160,-500.0,0.00016944,2]
[330654022,1719693040265,-500.0,0.00016944,2]
[330654024,1719693040275,-500.0,0.00016944,2]
[330654026,1719693040285,-500.0,0.00016944,2]
[330654027,1719693040295,-502.89063744,0.00016944,2]
[330654029,1719693040306,-500.0,0.00016944,2]
[330654031,1719693040316,-506.08147581,0.00016944,2]
[330654033,1719693040326,-500.0,0.00016944,2]
[330654035,1719693040336,-182.78609145,0.00016944,2]
[330654036,1719693040346,-500.0,0.00016944,2]
[330654038,1719693040357,-511.02104243,0.00016944,2]
[330654040,1719693040367,-1720.39,0.00016944,2]
[330654042,1719693040377,-500.0,0.00016944,2]
[330654043,1719693040387,-687.69,0.00016944,2]
[330654045,1719693040397,-500.0,0.00016944,2]
[330654047,1719693040407,-500.0,0.00016944,2]
[330654049,1719693040417,-545.02406216,0.00016944,2]
[330654051,1719693040427,-809.49,0.00016944,2]
[330654053,1719693040437,-500.0,0.00016944,2]
[330654054,1719693040448,-151.0,0.00016944,2]
[330654056,1719693040459,-924.98,0.00016944,2]
[330654058,1719693040469,-657.55,0.00016944,2]
[330654060,1719693040481,-524.4488104,0.00016944,2]
[330654062,1719693040491,-545.95292562,0.00016944,2]
[330654064,1719693040501,-500.0,0.00016944,2]
[330654065,1719693040511,-500.0,0.00016944,2]
[330654067,1719693040521,-500.0,0.00016944,2]
[330654069,1719693040531,-663.09,0.00016944,2]
[330654071,1719693040542,-1160.16,0.00016944,2]
[330654073,1719693040552,-291.16888287,0.00016944,2]
[330654075,1719693040562,-644.4,0.00016944,2]
[330654077,1719693040572,-500.0,0.00016944,2]
[330654079,1719693040582,-500.0,0.00016944,2]
[330654080,1719693040592,-500.0,0.00016944,2]
[330654082,1719693040602,-500.0,0.00016944,2]
[330654084,1719693040613,-338.98286592,0.00016944,2]
[330654086,1719693040622,-500.0,0.00016944,2]
[330654088,1719693040632,-500.0,0.00016944,2]
[330654090,1719693040644,-500.0,0.00016944,2]
[330654091,1719693040653,-500.0,0.00016944,2]
[330654093,1719693040663,-500.0,0.00016944,2]
[330654095,1719693040673,-500.0,0.00016944,2]
[330654097,1719693040683,-507.33651066,0.00016944,2]
[330654098,1719693040693,-821.11,0.00016944,2]
[330654100,1719693040704,-500.0,0.00016944,2]
[330654102,1719693040716,-500.0,0.00016944,2]
[330654104,1719693040726,-504.08985848,0.00016944,2]
[330654106,1719693040736,-2221.33,0.00016944,2]
[330654108,1719693040747,-500.0,0.00016944,2]
[330654110,1719693040758,-500.0,0.00016944,2]
[330654112,1719693040768,-500.0,0.00016944,2]
[330654113,1719693040778,-912.12,0.00016944,2]
[330654115,1719693040787,-500.0,0.00016944,2]
[330654117,1719693040798,-500.0,0.00016944,2]
[330654119,1719693040808,-536.96716511,0.00016944,2]
[330654120,1719693040818,-500.0,0.00016944,2]
[330654122,1719693040828,-500.0,0.00016944,2]
[330654124,1719693040837,-502.75133174,0.00016944,2]
[330654126,1719693040848,-976.93,0.00016944,2]
[330654128,1719693040859,-611.73931763,0.00016944,2]
[330654130,1719693040868,-825.98,0.00016944,2]
[330654132,1719693040878,-752.41,0.00016944,2]
[330654133,1719693040887,-500.0,0.00016944,2]
[330654135,1719693040896,-500.0,0.00016944,2]
[330654137,1719693040906,-498.62426849,0.00016944,2]
[330654139,1719693040915,-500.0,0.00016944,2]
[330654141,1719693040924,-502.02684967,0.00016944,2]
[330654142,1719693040934,-500.0,0.00016944,2]
[330654144,1719693040944,-500.0,0.00016944,2]
[330654146,1719693040954,-1264.18,0.00016944,2]
[330654148,1719693040963,-502.89687144,0.00016944,2]
[330654150,1719693040974,-500.0,0.00016944,2]
[330654152,1719693040985,-500.0,0.00016944,2]
[330654154,1719693040994,-799.36,0.00016944,2]
[330654156,1719693041004,-500.0,0.00016944,2]
[330654158,1719693041013,-544.93210748,0.00016944,2]
[330654160,1719693041023,-715.81,0.00016944,2]
[330654162,1719693041033,-151.0,0.00016944,2]
[330654164,1719693041043,-523.68,0.00016944,2]
[330654165,1719693041053,-151.0,0.00016944,2]
[330654167,1719693041063,-151.0,0.00016944,2]
[330654169,1719693041072,-151.0,0.00016944,2]
[330654171,1719693041082,-173.88945522,0.00016944,2]
[330654173,1719693041091,-167.766167,0.00016944,2]
[330654175,1719693041101,-500.0,0.00016944,2]
[330654177,1719693041113,-511.17262431,0.00016944,2]
[330654179,1719693041123,-1326.17,0.00016944,2]
[330654181,1719693041133,-508.53454151,0.00016944,2]
[330654183,1719693041142,-500.0,0.00016944,2]
[330654184,1719693041156,-701.66,0.00016944,2]
[330654186,1719693041166,-774.61,0.00016944,2]
[330654187,1719693041175,-500.0,0.00016944,2]
[330654189,1719693041184,-546.09,0.00016944,2]
[330654191,1719693041193,-629.05078901,0.00016944,2]
[330654193,1719693041203,-501.90636135,0.00016944,2]
[330654195,1719693041212,-500.0,0.00016944,2]
[330654197,1719693041222,-501.1586156,0.00016944,2]
[330654199,1719693041231,-500.0,0.00016944,2]
[330654201,1719693041241,-500.0,0.00016944,2]
[330654202,1719693041250,-502.31472678,0.00016944,2]
[330654204,1719693041259,-500.0,0.00016944,2]
[330654206,1719693041269,-500.0,0.00016944,2]
[330654208,1719693041278,-500.0,0.00016944,2]
[330654210,1719693041288,-500.0,0.00016944,2]
[330654212,1719693041297,-184.32497894,0.00016944,2]
[330654214,1719693041307,-500.0,0.00016944,2]
[330654216,1719693041316,-760.27,0.00016944,2]
[330654217,1719693041325,-500.0,0.00016944,2]
[330654219,1719693041335,-511.28822662,0.00016944,2]
[330654221,1719693041344,-500.0,0.00016944,2]
[330654223,1719693041353,-500.0,0.00016944,2]
[330654225,1719693041366,-500.0,0.00016944,2]
[330654227,1719693041376,-500.0,0.00016944,2]
[330654229,1719693041386,-608.80571108,0.00016944,2]
[330654231,1719693041395,-500.0,0.00016944,2]
[330654232,1719693041405,-500.0,0.00016944,2]
[330654234,1719693041417,-501.24030663,0.00016944,2]
[330654236,1719693041427,-502.97596274,0.00016944,2]
[330654238,1719693041436,-536.30899488,0.00016944,2]
[330654240,1719693041446,-643.36,0.00016944,2]
[330654242,1719693041456,-500.0,0.00016944,2]
[330654244,1719693041465,-502.0967941,0.00016944,2]
[330654246,1719693041475,-502.30739428,0.00016944,2]
[330654248,1719693041484,-503.79568185,0.00016944,2]
[330654249,1719693041493,-502.75333421,0.00016944,2]
[330654251,1719693041503,-258.86847943,0.00016944,2]
[330654253,1719693041512,-500.0,0.00016944,2]
[330654255,1719693041522,-1064.59,0.00016945,2]
[330654257,1719693041531,-500.0,0.00016945,2]
[330654259,1719693041541,-500.0,0.00016945,2]
[330654261,1719693041551,-500.0,0.00016945,2]
[330654263,1719693041560,-500.0,0.00016945,2]
[330654264,1719693041570,-1253.45,0.00016945,2]
[330654266,1719693041579,-500.0,0.00016945,2]
[330654268,1719693041589,-500.0,0.00016945,2]
[330654270,1719693041599,-506.25907671,0.00016945,2]
[330654272,1719693041610,-504.66540187,0.00016945,2]
[330654274,1719693041620,-1387.91,0.00016945,2]
[330654276,1719693041630,-500.0,0.00016945,2]
[330654277,1719693041640,-500.0,0.00016945,2]
[330654279,1719693041651,-2784.94,0.00016945,2]
[330654281,1719693041660,-500.0,0.00016945,2]
[330654283,1719693041670,-396.078909,0.00016945,2]
[330654285,1719693041680,-396.078909,0.00016945,2]
[330654287,1719693041689,-1139.35,0.00016945,2]
[330654289,1719693041699,-1394.6,0.00016945,2]
[330654291,1719693041708,-503.50737533,0.00016945,2]
[330654293,1719693041722,-500.0,0.00016945,2]
[330654295,1719693041732,-1354.89,0.00016945,2]
[330654296,1719693041741,-500.0,0.00016945,2]
[330654298,1719693041750,-500.0,0.00016945,2]
[330654308,1719693041845,-2515.46,0.00016945,2]
[330654310,1719693041855,-1606.05,0.00016945,2]
[330654311,1719693041865,-2885.0,0.00016945,2]
[330654313,1719693041874,-1719.62,0.00016945,2]
[330654315,1719693041883,-500.0,0.00016945,2]
[330654317,1719693041893,-500.0,0.00016945,2]
[330654319,1719693041903,-993.33,0.00016945,2]
[330654321,1719693041913,-3039.19,0.00016945,2]
[330654323,1719693041922,-500.0,0.00016945,2]
[330654325,1719693041932,-484.31130882,0.00016945,2]
[330654327,1719693041941,-500.0,0.00016945,2]
[330654328,1719693041951,-500.0,0.00016945,2]
[330654330,1719693041960,-500.0,0.00016945,2]
[330654332,1719693041970,-500.0,0.00016945,2]
[330654334,1719693041980,-500.0,0.00016945,2]
[330654336,1719693041989,-500.0,0.00016945,2]
[330654338,1719693041999,-1702.36,0.00016945,2]
[330654340,1719693042008,-625.92,0.00016945,2]
[330654342,1719693042017,-993.63,0.00016945,2]
[330654343,1719693042027,-1414.68,0.00016945,2]
[330654345,1719693042036,-151.0,0.00016945,2]
[330654347,1719693042046,-151.0,0.00016945,2]
[330654349,1719693042055,-500.0,0.00016945,2]
[330654351,1719693042064,-396.078909,0.00016946,2]
[330654353,1719693042074,-396.078909,0.00016946,2]
[330654355,1719693042084,-500.0,0.00016946,2]
[330654357,1719693042093,-500.0,0.00016946,2]
[330654358,1719693042103,-500.0,0.00016946,2]
[330654360,1719693042113,-500.0,0.00016946,2]
[330654362,1719693042123,-500.0,0.00016946,2]
[330654364,1719693042132,-500.0,0.00016946,2]
[330654366,1719693042141,-500.0,0.00016946,2]
[330654368,1719693042150,-10625.7120332,0.00016947,7]
[330654370,1719693042159,-500.0,0.00016947,2]
[330654372,1719693042168,-504.87454024,0.00016947,2]
[330654374,1719693042178,-501.0582881,0.00016947,2]
[330654375,1719693042187,-298.43466753,0.00016947,2]
[330654377,1719693042197,-500.0,0.00016947,2]
[330654379,1719693042207,-1160.0,0.00016947,2]
[330654381,1719693042216,-500.0,0.00016947,2]
[330654383,1719693042226,-500.0,0.00016947,2]
[330654385,1719693042235,-500.0,0.00016947,2]
[330654387,1719693042244,-500.0,0.00016947,2]
[330654389,1719693042254,-502.05521604,0.00016947,2]
[330654390,1719693042264,-639.7,0.00016947,2]
[330654392,1719693042273,-500.0,0.00016947,2]
[330654394,1719693042283,-500.0,0.00016947,2]
[330654396,1719693042292,-500.0,0.00016947,2]
[330654398,1719693042301,-500.0,0.00016947,2]
[330654400,1719693042310,-500.0,0.00016947,2]
[330654402,1719693042319,-834.15,0.00016947,2]
[330654404,1719693042328,-508.60860022,0.00016947,2]
[330654405,1719693042338,-500.0,0.00016947,2]
[330654407,1719693042347,-396.75492209,0.00016947,2]
[330654409,1719693042357,-500.0,0.00016947,2]
[330654411,1719693042367,-511.72287953,0.00016947,2]
[330654413,1719693042377,-630.79,0.00016947,2]
[330654415,1719693042387,-501.51483843,0.00016947,2]
[330654417,1719693042396,-500.0,0.00016947,2]
[330654419,1719693042406,-1544.98,0.00016947,2]
[330654420,1719693042416,-500.0,0.00016947,2]
[330654422,1719693042426,-500.0,0.00016947,2]
[330654424,1719693042436,-500.0,0.00016947,2]
[330654426,1719693042445,-502.83049847,0.00016947,2]
[330654428,1719693042457,-500.97574307,0.00016947,2]
[330654430,1719693042467,-500.0,0.00016947,2]
[330654432,1719693042476,-500.0,0.00016947,2]
[330654434,1719693042487,-500.0,0.00016947,2]
[330654435,1719693042497,-500.0,0.00016947,2]
[330654436,1719693042507,-502.27215851,0.00016947,2]
[330654437,1719693042516,-500.0,0.00016947,2]
[330654438,1719693042526,-630.341898,0.00016947,2]
[330654439,1719693042537,-500.0,0.00016947,2]
[330654440,1719693042546,-501.96270026,0.00016947,2]
[330654441,1719693042556,-553.07,0.00016947,2]
[330654442,1719693042566,-502.67918064,0.00016947,2]
[330654444,1719693042576,-982.59,0.00016947,2]
[330654446,1719693042586,-486.12695347,0.00016947,2]
[330654448,1719693042595,-500.0,0.00016947,2]
[330654450,1719693042605,-500.0,0.00016947,2]
[330654452,1719693042615,-501.18750972,0.00016947,2]
[330654453,1719693042625,-500.0,0.00016947,2]
[330654455,1719693042634,-592.94,0.00016947,2]
[330654457,1719693042645,-503.2219347,0.00016947,2]
[330654459,1719693042655,-501.86545941,0.00016947,2]
[330654461,1719693042665,-2157.35,0.00016947,2]
[330654463,1719693042675,-500.0,0.00016947,2]
[330654465,1719693042685,-845.16,0.00016947,2]
[330654467,1719693042696,-501.48110291,0.00016947,2]
[330654469,1719693042705,-500.0,0.00016947,2]
[330654471,1719693042718,-500.89298118,0.00016947,2]
[330654473,1719693042728,-500.0,0.00016947,2]
[330654475,1719693042737,-500.0,0.00016947,2]
[330654477,1719693042746,-503.78135278,0.00016947,2]
[330654479,1719693042758,-500.0,0.00016947,2]
[330654481,1719693042768,-500.0,0.00016947,2]
[330654484,1719693042778,-500.0,0.00016947,2]
[330654487,1719693042789,-500.0,0.00016947,2]
[330654490,1719693042798,-500.0,0.00016947,2]
[330654493,1719693042808,-504.10739124,0.00016947,2]
[330654496,1719693042818,-339.79054982,0.00016947,2]
[330654499,1719693042827,-500.0,0.00016947,2]
[330654501,1719693042836,-501.4466836,0.00016947,2]
[330654504,1719693042846,-300.0,0.00016947,2]
[330654507,1719693042856,-500.0,0.00016947,2]
[330654510,1719693042867,-710.22,0.00016947,2]
[330654514,1719693042878,-500.0,0.00016947,2]
[330654517,1719693042888,-500.0,0.00016947,2]
[330654520,1719693042898,-500.0,0.00016947,2]
[330654524,1719693042908,-500.0,0.00016947,2]
[330654526,1719693042918,-500.0,0.00016947,2]
[330654529,1719693042928,-500.0,0.00016947,2]
[330654532,1719693042938,-500.0,0.00016947,2]
[330654534,1719693042949,-500.0,0.00016947,2]
[330654536,1719693042959,-500.0,0.00016947,2]
[330654538,1719693042970,-500.0,0.00016947,2]
[330654540,1719693042982,-500.0,0.00016947,2]
[330654542,1719693042992,-500.0,0.00016947,2]
[330654544,1719693043002,-501.99860735,0.00016947,2]
[330654546,1719693043012,-501.78231271,0.00016947,2]
[330654548,1719693043022,-891.89,0.00016947,2]
[330654549,1719693043032,-500.0,0.00016947,2]
[330654551,1719693043042,-500.0,0.00016947,2]
[330654553,1719693043052,-500.0,0.00016947,2]
[330654555,1719693043061,-500.0,0.00016947,2]
[330654556,1719693043072,-856.86,0.00016947,2]
[330654557,1719693043082,-500.0,0.00016947,2]
[330654558,1719693043092,-1910.58,0.00016947,2]
[330654559,1719693043102,-500.0,0.00016947,2]
[330654560,1719693043112,-500.0,0.00016947,2]
[330654561,1719693043122,-502.60857858,0.00016947,2]
[330654562,1719693043132,-500.0,0.00016947,2]
[330654563,1719693043141,-500.0,0.00016947,2]
[330654564,1719693043151,-501.84016444,0.00016947,2]
[330654565,1719693043161,-500.0,0.00016947,2]
[330654566,1719693043171,-704.58,0.00016947,2]
[330654567,1719693043181,-396.078909,0.00016947,2]
[330654568,1719693043191,-396.078909,0.00016947,2]
[330654569,1719693043284,-514.12258312,0.00016947,2]
[330654570,1719693043295,-1000.0,0.00016947,2]
[330654571,1719693043305,-1009.61,0.00016947,2]
[330654572,1719693043315,-500.0,0.00016947,2]
[330654573,1719693043325,-501.39262462,0.00016947,2]
[330654574,1719693043335,-504.17035363,0.00016947,2]
[330654575,1719693043345,-500.0,0.00016947,2]
[330654576,1719693043355,-500.0,0.00016947,2]
[330654577,1719693043368,-500.0,0.00016947,2]
[330654578,1719693043378,-500.0,0.00016947,2]
[330654579,1719693043390,-500.0,0.00016947,2]
[330654580,1719693043400,-500.0,0.00016947,2]
[330654581,1719693043410,-500.0,0.00016947,2]
[330654582,1719693043420,-233.23839383,0.00016947,2]
[330654583,1719693043429,-500.0,0.00016947,2]
[330654584,1719693043440,-500.0,0.00016947,2]
[330654585,1719693043450,-235.35761024,0.00016947,2]
[330654586,1719693043460,-647.19,0.00016947,2]
[330654587,1719693043470,-500.0,0.00016947,2]
[330654588,1719693043480,-501.19645466,0.00016947,2]
[330654589,1719693043491,-503.0054815,0.00016947,2]
[330654590,1719693043501,-502.61957999,0.00016947,2]
[330654591,1719693043511,-500.0,0.00016947,2]
[330654592,1719693043521,-500.0,0.00016947,2]
[330654593,1719693043531,-500.0,0.00016947,2]
[330654594,1719693043541,-500.0,0.00016947,2]
[330654595,1719693043551,-501.54955489,0.00016947,2]
[330654596,1719693043561,-500.0,0.00016947,2]
[330654597,1719693043571,-500.0,0.00016947,2]
[330654598,1719693043581,-500.0,0.00016947,2]
[330654599,1719693043590,-500.0,0.00016947,2]
[330654600,1719693043600,-500.0,0.00016947,2]
[330654601,1719693043610,-500.0,0.00016947,2]
[330654602,1719693043620,-212.51315314,0.00016947,2]
[330654603,1719693043631,-399.32131195,0.00016947,2]
[330654604,1719693043641,-500.0,0.00016947,2]
[330654605,1719693043650,-500.64113332,0.00016947,2]
[330654606,1719693043661,-500.0,0.00016947,2]
[330654607,1719693043670,-500.0,0.00016947,2]
[330654608,1719693043680,-594.02498517,0.00016947,2]
[330654609,1719693043690,-500.0,0.00016947,2]
[330654610,1719693043700,-500.0,0.00016947,2]
[330654611,1719693043710,-500.0,0.00016947,2]
[330654612,1719693043724,-500.0,0.00016947,2]
[330654613,1719693043733,-500.0,0.00016947,2]
[330654614,1719693043743,-500.0,0.00016947,2]
[330654615,1719693043753,-500.0,0.00016947,2]
[330654616,1719693043764,-546.41,0.00016947,2]
[330654617,1719693043775,-500.0,0.00016947,2]
[330654618,1719693043796,-500.0,0.00016947,2]
[330654619,1719693043807,-500.0,0.00016947,2]
[330654620,1719693043819,-547.82,0.00016947,2]
[330654621,1719693043830,-500.0,0.00016947,2]
[330654622,1719693043842,-500.0,0.00016947,2]
[330654623,1719693043852,-500.0,0.00016947,2]
[330654624,1719693043867,-500.0,0.00016947,2]
[330654625,1719693043880,-559.26,0.00016947,2]
[330654626,1719693043891,-500.0,0.00016947,2]
[330654627,1719693043901,-503.24646411,0.00016947,2]
[330654628,1719693043912,-500.0,0.00016947,2]
[330654629,1719693043922,-500.0,0.00016947,2]
[330654630,1719693043934,-500.0,0.00016947,2]
[330654631,1719693043944,-1450.8,0.00016947,2]
[330654632,1719693043954,-500.0,0.00016947,2]
[330654633,1719693043964,-500.0,0.00016947,2]
[330654634,1719693043974,-556.35,0.00016947,2]
[330654635,1719693043984,-500.0,0.00016947,2]
[330654636,1719693043994,-475.60655869,0.00016947,2]
[330654637,1719693044004,-500.0,0.00016947,2]
[330654638,1719693044015,-500.0,0.00016947,2]
[330654639,1719693044025,-500.0,0.00016947,2]
[330654640,1719693044035,-534.85,0.00016947,2]
[330654641,1719693044044,-306.96994833,0.00016947,2]
[330654642,1719693044054,-827.1,0.00016947,2]
[330654644,1719693044064,-761.21,0.00016947,2]
[330654645,1719693044074,-500.0,0.00016947,2]
[330654646,1719693044083,-500.0,0.00016947,2]
[330654647,1719693044092,-500.0,0.00016947,2]
[330654649,1719693044102,-500.0,0.00016947,2]
[330654650,1719693044114,-500.0,0.00016947,2]
[330654651,1719693044123,-558.46,0.00016947,2]
[330654653,1719693044133,-743.37,0.00016947,2]
[330654655,1719693044142,-563.75,0.00016947,2]
[330654657,1719693044151,-500.0,0.00016947,2]
[330654659,1719693044161,-500.0,0.00016947,2]
[330654661,1719693044169,-500.0,0.00016947,2]
[330654662,1719693044179,-1093.75,0.00016947,2]
[330654665,1719693044188,-151.0,0.00016947,2]
[330654667,1719693044198,-151.0,0.00016947,2]
[330654669,1719693044207,-151.0,0.00016947,2]
[330654671,1719693044217,-500.0,0.00016947,2]
[330654673,1719693044227,-500.58786215,0.00016947,2]
[330654675,1719693044236,-151.0,0.00016947,2]
[330654677,1719693044245,-151.0,0.00016947,2]
[330654679,1719693044254,-151.0,0.00016947,2]
[330654681,1719693044263,-500.0,0.00016947,2]
[330654683,1719693044273,-510.339056,0.00016947,2]
[330654685,1719693044282,-500.0,0.00016947,2]
[330654686,1719693044292,-394.3736668,0.00016947,2]
[330654689,1719693044302,-500.0,0.00016947,2]
[330654691,1719693044312,-500.0,0.00016947,2]
[330654692,1719693044322,-500.0,0.00016947,2]
[330654694,1719693044331,-500.0,0.00016947,2]
[330654695,1719693044340,-500.0,0.00016947,2]
[330654696,1719693044349,-500.0,0.00016947,2]
[330654697,1719693044359,-500.0,0.00016947,2]
[330654698,1719693044368,-508.78307288,0.00016947,2]
[330654699,1719693044378,-501.47082297,0.00016947,2]
[330654700,1719693044387,-500.0,0.00016947,2]
[330654701,1719693044396,-157.58253034,0.00016947,2]
[330654702,1719693044405,-500.0,0.00016947,2]
[330654703,1719693044414,-448.3178706,0.00016947,2]
[330654704,1719693044424,-558.43315913,0.00016947,2]
[330654705,1719693044433,-526.20628414,0.00016947,2]
[330654706,1719693044442,-500.0,0.00016947,2]
[330654707,1719693044452,-500.0,0.00016947,2]
[330654708,1719693044462,-500.0,0.00016947,2]
[330654709,1719693044471,-501.63037227,0.00016947,2]
[330654710,1719693044480,-500.0,0.00016947,2]
[330654711,1719693044490,-501.56843506,0.00016947,2]
[330654712,1719693044499,-500.0,0.00016947,2]
[330654713,1719693044509,-500.0,0.00016947,2]
[330654714,1719693044518,-500.0,0.00016947,2]
[330654715,1719693044527,-505.44340575,0.00016947,2]
[330654716,1719693044537,-500.0,0.00016947,2]
[330654717,1719693044546,-500.0,0.00016947,2]
[330654718,1719693044555,-500.0,0.00016947,2]
[330654719,1719693044662,-500.0,0.00016948,2]
[330654720,1719693044672,-503.5916084,0.00016948,2]
[330654721,1719693044681,-2155.46,0.00016948,2]
[330654722,1719693044690,-500.0,0.00016948,2]
[330654723,1719693044698,-500.0,0.00016948,2]
[330654724,1719693044707,-1461.71,0.00016948,2]
[330654725,1719693044719,-503.32619059,0.00016948,2]
[330654726,1719693044728,-2850.59,0.00016948,2]
[330654727,1719693044737,-500.0,0.00016948,2]
[330654728,1719693044745,-603.17,0.00016948,2]
[330654729,1719693044755,-670.43,0.00016948,2]
[330654730,1719693044764,-525.33,0.00016948,2]
[330654731,1719693044773,-529.00221487,0.00016948,2]
[330654732,1719693044781,-500.0,0.00016948,2]
[330654733,1719693044791,-1032.0,0.00016948,2]
[330654734,1719693044800,-507.65970843,0.00016948,2]
[330654735,1719693044809,-584.44,0.00016948,2]
[330654736,1719693044817,-500.0,0.00016948,2]
[330654737,1719693044826,-500.0,0.00016948,2]
[330654738,1719693044835,-3366.55,0.00016948,2]
[330654739,1719693044843,-500.0,0.00016948,2]
[330654740,1719693044852,-500.0,0.00016948,2]
[330654741,1719693044861,-396.078909,0.00016948,2]
[330654742,1719693044870,-396.078909,0.00016948,2]
[330654743,1719693044879,-500.0,0.00016948,2]
[330654744,1719693044888,-500.0,0.00016948,2]
[330654745,1719693044896,-500.0,0.00016948,2]
[330654746,1719693044906,-500.0,0.00016948,2]
[330654747,1719693044915,-593.02,0.00016948,2]
[330654748,1719693044924,-1159.68,0.00016948,2]
[330654749,1719693044932,-500.0,0.00016948,2]
[330654750,1719693044942,-2382.19,0.00016948,2]
[330654751,1719693044950,-500.0,0.00016948,2]
[330654752,1719693044959,-500.0,0.00016948,2]
[330654753,1719693044968,-500.0,0.00016948,2]
[330654754,1719693044977,-500.0,0.00016948,2]
[330654755,1719693044986,-197.18,0.00016948,2]
[330654756,1719693044994,-907.27,0.00016948,2]
[330654757,1719693045004,-151.0,0.00016948,2]
[330654758,1719693045014,-500.0,0.00016948,2]
[330654759,1719693045023,-151.0,0.00016948,2]
[330654760,1719693045032,-996.11,0.00016948,2]
[330654761,1719693045041,-3030.18,0.00016948,2]
[330654762,1719693045050,-500.0,0.00016948,2]
[330654763,1719693045060,-500.0,0.00016948,2]
[330654764,1719693045069,-614.06,0.00016948,2]
[330654765,1719693045078,-560.91,0.00016948,2]
[330654766,1719693045087,-500.0,0.00016948,2]
[330654767,1719693045096,-681.99,0.00016948,2]
[330654769,1719693045105,-1598.61,0.00016948,2]
[330654770,1719693045115,-1510.60188112,0.00016949,2]
[330654781,1719693045602,-1157.78932302,0.00016943,2]
[330654793,1719693046060,-197.98067698,0.00016943,2]
[330654794,1719693046070,-356.44811888,0.00016949,2]
[330654796,1719693046079,-397.98178427,0.00016949,2]
[330654798,1719693046088,-502.0613752,0.00016949,2]
[330654799,1719693046098,-776.49,0.00016949,2]
[330654800,1719693046260,-500.0,0.00016949,2]
[330654801,1719693046269,-500.0,0.00016949,2]
[330654802,1719693046278,-558.15,0.00016949,2]
[330654803,1719693046288,-500.0,0.00016949,2]
[330654804,1719693046297,-500.0,0.00016949,2]
[330654805,1719693046306,-500.0,0.00016949,2]
[330654806,1719693046315,-501.54509184,0.00016949,2]
[330654807,1719693046325,-500.0,0.00016949,2]
[330654808,1719693046334,-500.0,0.00016949,2]
[330654809,1719693046344,-624.03521486,0.00016949,2]
[330654810,1719693046353,-500.0,0.00016949,2]
[330654811,1719693046364,-500.0,0.00016949,2]
[330654812,1719693046375,-396.078909,0.00016949,2]
[330654813,1719693046386,-396.078909,0.00016949,2]
[330654814,1719693046395,-502.60098832,0.00016949,2]
[330654815,1719693046404,-500.0,0.00016949,2]
[330654816,1719693046414,-501.95930513,0.00016949,2]